bitfinex-derivatives/quotes_ETHF0:USTF0_20250323
["timestamp","ask_amount","ask_price","bid_price","bid_amount"]
[1742731556530,1.9851,2013.3,2013.2,0.99358]
[1742731556734,0.6751,2013.3,2013.2,0.99358]
[1742731557136,1.9631,2013.5,2013.1,8.92191]
[1742731557439,6.20794,2013.6,2013.1,8.92191]
[1742731557639,3.64324,2013.6,2013.2,2.48405]
[1742731558038,0.691,2013.6,2013.5,0.99347]
[1742731561540,0.691,2013.6,2013.5,2.37687]
[1742731561936,1.68442,2013.6,2013.5,2.37687]
[1742731562147,1.68442,2013.6,2013.5,1.3834]
[1742731562344,2.33172,2013.6,2013.5,1.3834]
[1742731565952,3.61022,2013.6,2013.5,1.3834]
[1742731566753,3.61022,2013.6,2013.1,3.2078]
[1742731566754,0.99357,2013.3,2013.1,3.2078]
[1742731567055,0.99355,2013.4,2013.3,0.99355]
[1742731567253,1.3377,2013.5,2013.4,0.99352]
[1742731567254,2.3312,2013.5,2013.4,0.99352]
[1742731567551,0.99352,2013.4,2013.3,1.66733]
[1742731567751,2.33122,2013.4,2013.3,1.66733]
[1742731568550,2.33122,2013.4,2013.3,0.99353]
[1742731569755,0.99357,2013.3,2013.2,2.37008]
[1742731570752,2.33126,2013.4,2013.3,0.99357]
[1742731570960,2.33122,2013.4,2013.3,1.3716]
[1742731575448,0.99349,2013.5,2013.4,0.99352]
[1742731575642,0.99349,2013.5,2013.4,1.69022]
[1742731575849,2.33679,2013.5,2013.4,0.6967]
[1742731576252,0.99347,2013.5,2013.4,3.08732]
[1742731576756,0.99347,2013.5,2013.4,43.88732]
[1742731577159,2.33677,2013.5,2013.4,43.88732]
[1742731579452,1.3383,2013.6,2013.5,0.99347]
[1742731579644,1.3383,2013.6,2013.5,2.36187]
[1742731579856,3.61862,2013.6,2013.5,2.36187]
[1742731580251,2.6252,2013.6,2013.5,2.36187]
[1742731580450,1.3383,2013.6,2013.5,2.36187]
[1742731580759,0.691,2013.6,2013.5,2.36187]
[1742731581859,0.99335,2013.8,2013.5,1.3684]
[1742731582061,0.99335,2013.8,2013.7,0.99337]
[1742731582062,3.01985,2013.8,2013.7,0.99337]
[1742731582560,3.01985,2013.8,2013.7,1.63947]
[1742731582857,3.01985,2013.8,2013.7,0.6461]
[1742731583360,3.01985,2013.8,2013.7,2.99767]
[1742731583558,3.01985,2013.8,2013.7,2.0043]
[1742731585561,3.01985,2013.8,2013.7,1.3582]
[1742731586563,1.67325,2013.8,2013.7,1.3582]
[1742731586955,3.00775,2013.8,2013.7,1.3582]
[1742731588361,3.00775,2013.8,2013.7,2.35157]
[1742731588560,3.00775,2013.8,2013.7,1.3582]
[1742731590962,0.6799,2013.8,2013.7,2.35157]
[1742731591279,1.67322,2013.8,2013.7,2.35157]
[1742731592066,1.67322,2013.8,2013.7,1.3582]
[1742731592374,1.67322,2013.8,2013.7,2.35157]
[1742731593762,0.6799,2013.8,2013.7,2.35157]
[1742731593966,1.67322,2013.8,2013.7,2.35157]
[1742731594370,1.67322,2013.8,2013.7,1.3582]
[1742731594865,2.94172,2013.8,2013.7,1.3582]
[1742731599178,1.9484,2013.8,2013.7,2.35157]
[1742731599374,0.6799,2013.8,2013.7,2.35157]
[1742731599671,1.67322,2013.8,2013.7,2.35157]
[1742731599874,1.67322,2013.8,2013.7,1.3582]
[1742731600274,1.67322,2013.8,2013.7,2.35157]
[1742731600671,1.67322,2013.8,2013.7,1.3582]
[1742731600871,0.6799,2013.8,2013.7,2.35157]
[1742731605062,1.67322,2013.8,2013.7,1.3582]
[1742731605268,3.06412,2013.8,2013.7,1.3582]
[1742731605879,3.06412,2013.8,2013.7,2.35157]
[1742731606180,3.06412,2013.8,2013.7,1.3582]
[1742731607379,0.6799,2013.8,2013.7,2.35157]
[1742731608378,1.67322,2013.8,2013.7,2.35157]
[1742731608580,0.6799,2013.8,2013.7,2.35157]
[1742731610686,0.99326,2014.0,2013.8,0.99332]
[1742731610974,3.04746,2014.0,2013.8,1.9824]
[1742731611372,3.04746,2014.0,2013.9,2.32107]
[1742731611569,3.04746,2014.0,2013.9,1.3278]
[1742731611773,3.04746,2014.0,2013.9,2.32107]
[1742731612084,3.04746,2014.0,2013.9,1.3278]
[1742731612780,3.04742,2014.0,2013.9,2.32107]
[1742731612976,2.0542,2014.0,2013.9,2.32107]
[1742731613381,3.04742,2014.0,2013.9,2.32107]
[1742731613582,3.04742,2014.0,2013.9,1.3278]
[1742731614180,0.6559,2014.0,2013.9,2.32107]
[1742731614382,0.6559,2014.0,2013.9,5.52887]
[1742731615480,4.90867,2014.2,2013.9,4.5356]
[1742731615686,4.90867,2014.2,2014.0,2.39239]
[1742731615982,4.90867,2014.2,2014.1,1.3992]
[1742731616183,0.6885,2014.2,2014.1,2.39237]
[1742731616679,3.03922,2014.2,2014.1,2.39237]
[1742731617384,2.0461,2014.2,2014.1,2.39237]
[1742731617576,3.03922,2014.2,2014.1,2.39237]
[1742731617776,3.03922,2014.2,2014.1,1.3992]
[1742731617976,2.0461,2014.2,2014.1,2.39237]
[1742731618884,3.03922,2014.2,2014.1,1.3992]
[1742731619482,3.03922,2014.2,2014.1,2.39237]
[1742731619682,3.03922,2014.2,2014.1,1.3992]
[1742731620184,3.03922,2014.2,2014.1,2.39237]
[1742731620383,3.03922,2014.2,2014.1,1.3992]
[1742731622788,3.03922,2014.2,2014.1,2.39237]
[1742731622789,2.0461,2014.2,2014.1,2.39237]
[1742731623385,1.64756,2014.4,2014.2,0.99312]
[1742731623688,5.50916,2014.4,2014.3,1.3736]
[1742731624885,6.84596,2014.4,2014.3,1.3736]
[1742731625289,3.61896,2014.4,2014.3,1.3736]
[1742731625590,3.61893,2014.4,2014.3,1.3736]
[1742731626286,2.6259,2014.4,2014.3,2.36667]
[1742731628686,1.9913,2014.4,2014.3,2.36667]
[1742731628988,1.9824,2014.7,2014.3,2.36667]
[1742731629189,2.6699,2014.7,2014.6,0.99293]
[1742731630187,0.6875,2014.7,2014.6,5.46453]
[1742731630390,2.7108,2014.7,2014.6,8.69053]
[1742731630684,3.70368,2014.7,2014.6,45.2716]
[1742731631885,3.70368,2014.7,2014.6,42.0638]
[1742731632188,0.99302,2014.5,2014.3,4.20084]
[1742731632387,1.66623,2014.4,2014.3,3.2078]
[1742731632690,0.99312,2014.3,2014.1,4.21914]
[1742731632882,1.31599909,2014.4,2014.0,4.20101]
[1742731633081,0.99317,2014.1,2014.0,45.00101]
[1742731633484,0.99317,2014.1,2014.0,46.26371]
[1742731633690,0.99316,2014.2,2014.1,0.99317]
[1742731633990,0.99316,2014.2,2014.1,1.2627]
[1742731634892,2.31299,2014.3,2014.1,1.2627]
[1742731635092,2.31299,2014.3,2014.1,1.9363]
[1742731635286,2.31299,2014.3,2014.2,0.99312]
[1742731635487,2.30904909,2014.4,2014.2,2.25582]
[1742731635681,0.99307,2014.3,2014.2,2.25582]
[1742731635882,0.99307,2014.3,2014.2,1.2627]
[1742731636083,2.31297,2014.3,2014.2,1.2627]
[1742731636892,1.3199,2014.3,2014.2,2.25582]
[1742731637090,0.99307,2014.3,2014.2,1.2627]
[1742731637394,2.30847,2014.3,2014.2,1.2627]
[1742731638495,2.30847,2014.3,2014.2,2.25582]
[1742731639098,2.30847,2014.3,2014.2,1.2627]
[1742731640397,2.30847,2014.3,2014.2,2.25582]
[1742731640598,2.30905909,2014.4,2014.3,0.99307]
[1742731640795,3.69025909,2014.4,2014.3,2.37697]
[1742731640989,3.69025909,2014.4,2014.3,1.3839]
[1742731644295,2.69719909,2014.4,2014.3,2.37697]
[1742731644796,0.66799909,2014.4,2014.3,2.37697]
[1742731646500,0.99295,2014.6,2014.5,0.99298]
[1742731646501,1.3006,2014.6,2014.5,0.99298]
[1742731646701,2.98184,2014.6,2014.4,2.3917]
[1742731646899,1.9889,2014.6,2014.5,2.39168]
[1742731647403,2.98183,2014.6,2014.5,1.3987]
[1742731649696,2.98183,2014.6,2014.5,2.0923]
[1742731649904,3.225,2015.0,2014.5,2.0923]
[1742731650194,0.99285,2014.8,2014.6,2.3532]
[1742731650391,0.99285,2014.8,2014.7,1.3603]
[1742731650604,2.28665,2014.8,2014.7,1.3603]
[1742731654604,0.99299,2014.5,2014.3,7.42585]
[1742731654806,0.99296,2014.6,2014.4,1.2711]
[1742731655008,1.63708,2014.5,2014.4,1.2711]
[1742731655201,2.30828,2014.5,2014.4,1.2711]
[1742731657315,5.53328,2014.5,2014.4,1.2711]
[1742731657914,0.99303,2014.4,2014.3,3.2078]
[1742731658416,0.99307,2014.3,2014.2,1.3908]
[1742731660513,4.21807,2014.3,2014.2,1.3908]
[1742731667128,0.99317,2014.1,2014.0,42.0789]
[1742731667423,4.21817,2014.1,2014.0,1.2789]
[1742731668822,0.99322,2014.0,2013.9,40.8]
[1742731669024,0.99322,2014.0,2013.9,42.0789]
[1742731671023,0.99322,2014.0,2013.9,40.8]
[1742731671626,2.25992,2014.0,2013.9,40.8]
[1742731671920,0.99332,2013.8,2013.7,0.00745471]
[1742731672123,4.21832,2013.8,2013.7,1.31935471]
[1742731672511,5.48502,2013.8,2013.7,1.31935471]
[1742731674630,8.69282,2013.8,2013.7,1.31935471]
[1742731676126,8.69282,2013.8,2013.5,40.8]
[1742731676127,0.99347,2013.5,2013.4,0.6717]
[1742731676429,0.99352,2013.4,2013.3,3.2078]
[1742731676628,2.35372,2013.4,2013.3,44.0078]
[1742731677532,3.62802,2013.4,2013.3,45.3796]
[1742731678631,1.66352,2013.4,2013.3,45.3796]
[1742731679229,2.94492,2013.4,2013.3,45.3796]
[1742731679423,1.66352,2013.4,2013.3,45.3796]
[1742731683831,3.03482,2013.4,2013.3,45.3796]
[1742731684540,1.66352,2013.4,2013.3,45.3796]
[1742731685042,2.95232,2013.4,2013.3,45.3796]
[1742731686347,2.95232,2013.4,2013.3,1.3718]
[1742731686536,0.99362,2013.2,2013.1,0.00745471]
[1742731686736,4.21862,2013.2,2013.1,1.32715471]
[1742731687134,5.50742,2013.2,2013.1,1.32715471]
[1742731690042,8.71522,2013.2,2013.1,1.32715471]
[1742731690636,0.99377,2012.9,2012.8,41.4458]
[1742731690843,4.21877,2012.9,2012.8,41.4458]
[1742731691535,5.55797,2012.9,2012.8,41.4458]
[1742731693243,4.21877,2012.9,2012.8,41.4458]
[1742731693837,4.21877,2012.9,2012.8,42.777]
[1742731699048,3.8749,2013.1,2012.8,42.777]
[1742731699250,0.99374,2013.0,2012.9,2.0802]
[1742731702953,3.8749,2013.1,2012.9,3.07397]
[1742731703151,4.86857,2013.1,2013.0,1.2883]
[1742731705745,4.86857,2013.1,2013.0,1.36440205]
[1742731708252,5.50457,2013.1,2013.0,1.36440205]
[1742731710854,4.86857,2013.1,2013.0,1.36440205]
[1742731723775,4.86857,2013.1,2013.0,0.07610205]
[1742731733186,5.79989716,2013.1,2013.0,0.07610205]
[1742731734294,6.57658057,2013.1,2013.0,0.07610205]
[1742731734496,5.79989716,2013.1,2013.0,0.07610205]
[1742731734689,6.57654855,2013.1,2013.0,0.07610205]
[1742731735589,0.99386,2012.7,2012.6,0.00745471]
[1742731735790,4.21786,2012.7,2012.6,1.31395471]
[1742731736489,6.17426,2012.7,2012.6,1.31395471]
[1742731738091,9.38206,2012.7,2012.6,0.00745471]
[1742731738298,9.38206,2012.7,2012.4,1.4001]
[1742731738299,0.99396,2012.5,2012.4,1.4001]
[1742731738489,4.21796,2012.5,2012.4,1.4001]
[1742731738900,4.91486,2012.5,2012.4,1.4001]
[1742731742003,0.99406,2012.3,2012.2,0.00745471]
[1742731742198,4.21806,2012.3,2012.2,1.28305471]
[1742731742598,5.54736,2012.3,2012.2,1.28305471]
[1742731746304,5.54736,2012.3,2011.8,41.7943]
[1742731746305,0.99426,2011.9,2011.8,40.8]
[1742731746495,0.99426,2011.9,2011.8,41.4381]
[1742731747600,5.51165,2012.0,2011.8,42.7137]
[1742731747800,5.51165,2012.0,2011.9,1.2756]
[1742731750107,4.21825,2012.0,2011.9,1.2756]
[1742731750502,4.21925,2012.0,2011.9,1.2756]
[1742731751108,0.99418,2012.1,2011.9,1.2756]
[1742731751302,4.21914,2012.2,2011.9,1.2756]
[1742731751603,0.99417,2012.1,2011.9,2.26983]
[1742731751904,3.8555,2012.4,2012.0,1.3153]
[1742731752113,0.99414,2012.2,2012.1,0.6448]
[1742731752412,0.99414,2012.2,2012.1,1.3256]
[1742731755611,4.21814,2012.2,2012.1,1.3256]
[1742731756000,3.2078,2012.4,2012.1,1.3256]
[1742731756219,0.99409,2012.3,2012.1,2.31974]
[1742731756714,0.99411,2012.2,2012.1,1.3256]
[1742731758408,0.99411,2012.2,2012.1,2.31976]
[1742731758808,4.2181,2012.3,2012.1,2.31975]
[1742731759917,0.99411,2012.2,2012.1,1.3256]
[1742731761216,4.21809,2012.3,2012.1,2.31976]
[1742731761917,0.99411,2012.2,2012.1,2.31976]
[1742731762219,4.21809,2012.3,2012.1,2.31976]
[1742731762618,3.224,2012.3,2012.1,2.31976]
[1742731762916,4.21809,2012.3,2012.1,2.31976]
[1742731763721,0.99409,2012.3,2012.1,2.31976]
[1742731763919,3.224,2012.3,2012.1,2.31976]
[1742731764122,4.2181,2012.3,2012.1,2.31976]
[1742731764323,0.99411,2012.2,2012.1,2.31976]
[1742731764927,5.50709,2012.3,2012.1,2.31976]
[1742731766020,0.99411,2012.2,2012.1,2.31976]
[1742731767716,5.50709,2012.3,2012.1,2.31976]
[1742731768221,0.99411,2012.2,2012.1,2.31976]
[1742731768423,4.513,2012.3,2012.1,2.31972]
[1742731768424,4.2181,2012.3,2012.1,2.31972]
[1742731768721,0.99411,2012.2,2012.1,1.3256]
[1742731769123,2.38011,2012.2,2012.1,2.31976]
[1742731771824,2.38011,2012.2,2012.1,3.59356]
[1742731772635,2.38011,2012.2,2012.1,2.5994]
[1742731772922,2.38011,2012.2,2012.1,1.2738]
[1742731773225,3.03111,2012.2,2012.1,1.2738]
[1742731773430,0.99416,2012.1,2012.0,3.2078]
[1742731773720,2.34546,2012.1,2012.0,4.5171]
[1742731774327,2.34546,2012.1,2012.0,5.51131]
[1742731775224,1.3513,2012.1,2012.0,5.51131]
[1742731778831,1.3513,2012.1,2012.0,4.5171]
[1742731779025,1.3513,2012.1,2012.0,5.51131]
[1742731779830,2.34546,2012.1,2012.0,5.51131]
[1742731780033,1.3513,2012.1,2012.0,5.51131]
[1742731784827,2.34546,2012.1,2012.0,4.5171]
[1742731785937,2.34546,2012.1,2012.0,5.51131]
[1742731786732,2.34546,2012.1,2012.0,4.5171]
[1742731787838,2.34546,2012.1,2012.0,5.51131]
[1742731789037,1.3513,2012.1,2012.0,46.31131]
[1742731789537,2.34546,2012.1,2012.0,45.3171]
[1742731790732,2.34546,2012.1,2012.0,46.31131]
[1742731791726,2.34546,2012.1,2012.0,45.3171]
[1742731792132,2.34546,2012.1,2012.0,46.31131]
[1742731792337,1.3513,2012.1,2012.0,46.31131]
[1742731792735,2.34546,2012.1,2012.0,45.3171]
[1742731794245,2.34546,2012.1,2012.0,46.31131]
[1742731794843,1.3513,2012.1,2012.0,46.31131]
[1742731798835,2.34546,2012.1,2012.0,46.31131]
[1742731799536,2.34546,2012.1,2012.0,43.10351]
[1742731799744,2.34546,2012.1,2012.0,46.31131]
[1742731799937,2.34546,2012.1,2012.0,45.3171]
[1742731801746,2.34546,2012.1,2012.0,4.5171]
[1742731807449,1.3513,2012.1,2012.0,4.5171]
[1742731807644,1.3513,2012.1,2012.0,5.51131]
[1742731808744,0.651,2012.2,2012.1,0.99416]
[1742731808942,0.651,2012.2,2012.1,2.37716]
[1742731809148,0.651,2012.2,2012.1,3.02916]
[1742731809851,0.00745471,2012.5,2012.4,0.99401]
[1742731810243,0.00745471,2012.5,2012.4,3.02841]
[1742731810444,0.00745471,2012.5,2012.4,43.82841]
[1742731811144,0.00745471,2012.5,2012.4,44.49811]
[1742731818153,0.00745471,2012.5,2012.4,3.69811]
[1742731824156,1.28805471,2012.5,2012.4,3.69811]
[1742731826150,0.00745471,2012.5,2012.4,3.69811]
[1742731827157,1.32365471,2012.5,2012.4,3.69811]
[1742731827353,1.32365471,2012.5,2012.4,2.36971]
[1742731834263,1.32365471,2012.5,2012.4,43.16971]
[1742731836566,0.00745471,2012.5,2012.4,43.16971]
[1742731838164,1.39575471,2012.5,2012.4,43.16971]
[1742731844470,1.39575471,2012.5,2012.4,46.37751]
[1742731850273,2.38971471,2012.5,2012.4,46.37751]
[1742731850463,1.39575471,2012.5,2012.4,46.37751]
[1742731859175,2.38971471,2012.5,2012.4,5.57751]
[1742731859576,5.60871471,2012.5,2012.4,44.0078]
[1742731859768,5.60871471,2012.5,2012.4,3.2078]
[1742731863280,0.99404,2012.4,2012.2,40.8]
[1742731863576,2.0232,2012.3,2012.2,43.13591]
[1742731863782,2.0232,2012.3,2012.2,41.79411]
[1742731864771,3.01726,2012.3,2012.2,41.79411]
[1742731865279,6.23626,2012.3,2012.2,40.8]
[1742731865478,0.99411,2012.2,2012.1,3.2078]
[1742731865686,2.35751,2012.2,2012.1,3.2078]
[1742731866075,2.35751,2012.2,2012.1,45.00196]
[1742731866276,1.3634,2012.2,2012.1,45.00196]
[1742731866977,2.35751,2012.2,2012.1,45.00196]
[1742731867185,1.3634,2012.2,2012.1,45.00196]
[1742731868076,1.3634,2012.2,2012.1,4.20196]
[1742731868278,2.35751,2012.2,2012.1,4.20196]
[1742731868477,1.3634,2012.2,2012.1,4.20196]
[1742731869282,2.35751,2012.2,2012.1,4.20196]
[1742731869482,1.3634,2012.2,2012.1,4.20196]
[1742731870677,2.35751,2012.2,2012.1,3.2078]
[1742731871076,2.35751,2012.2,2012.1,4.20196]
[1742731871276,2.35751,2012.2,2012.1,3.2078]
[1742731872581,0.99421,2012.0,2011.9,41.79426]
[1742731873491,2.97171,2012.0,2011.9,0.99426]
[1742731873786,2.97171,2012.0,2011.8,41.79427]
[1742731873987,1.3507,2011.9,2011.8,41.79427]
[1742731878685,1.64261,2012.0,2011.9,0.99426]
[1742731878889,2.99581,2012.0,2011.9,0.99426]
[1742731879690,0.6484,2012.0,2011.9,0.99426]
[1742731880379,1.64264,2012.0,2011.8,41.79426]
[1742731880587,2.98834,2012.0,2011.8,40.8]
[1742731880785,1.3457,2011.9,2011.8,41.79428]
[1742731881197,2.98834,2012.0,2011.9,0.99426]
[1742731881896,2.98834,2012.0,2011.9,2.27746]
[1742731882789,1.9941,2012.0,2011.9,2.27746]
[1742731883088,0.6484,2012.0,2011.9,2.27746]
[1742731884289,1.64261,2012.0,2011.9,2.27746]
[1742731884487,3.00091,2012.0,2011.9,2.27746]
[1742731884990,2.0067,2012.0,2011.9,2.27746]
[1742731885694,3.00091,2012.0,2011.9,2.27746]
[1742731885892,2.0067,2012.0,2011.9,2.27746]
[1742731886091,0.6484,2012.0,2011.9,2.27746]
[1742731886593,3.8674,2012.0,2011.9,2.27746]
[1742731887494,0.6484,2012.0,2011.9,2.27746]
[1742731887700,3.8674,2012.0,2011.9,2.27746]
[1742731890395,5.2154,2012.0,2011.9,2.27746]
[1742731891587,3.218,2012.0,2011.9,2.27746]
[1742731891787,3.218,2012.0,2011.9,2.96226]
[1742731892697,4.21217,2012.1,2012.0,0.99421]
[1742731892897,4.21217,2012.1,2012.0,2.32121]
[1742731893098,4.21217,2012.1,2012.0,1.9668]
[1742731893493,4.21217,2012.1,2012.0,2.96101]
[1742731893894,4.21217,2012.1,2012.0,6.16881]
[1742731893895,4.21216,2012.1,2012.0,6.16881]
[1742731894200,3.218,2012.1,2012.0,6.16881]
[1742731894595,4.5679,2012.1,2012.0,6.16881]
[1742731894902,5.56206,2012.1,2012.0,6.16881]
[1742731896101,2.34406,2012.1,2012.0,6.16881]
[1742731896288,5.56206,2012.1,2012.0,4.5348]
[1742731901000,0.9943,2011.9,2011.7,45.70233]
[1742731901200,3.218,2011.8,2011.6,0.00745471]
[1742731901399,6.17216,2011.7,2011.6,0.00745471]
[1742731905306,6.17216,2011.7,2011.6,1.00186471]
[1742731905604,5.1778,2011.7,2011.6,2.32476471]
[1742731905807,4.20211,2011.8,2011.7,0.99436]
[1742731906007,4.20211,2011.8,2011.7,2.31726]
[1742731906309,0.99431,2011.8,2011.7,1.3229]
[1742731906497,2.31561,2011.8,2011.7,1.3229]
[1742731906806,2.31561,2011.8,2011.7,2.31726]
[1742731907007,2.31561,2011.8,2011.7,1.3229]
[1742731909511,5.53361,2011.8,2011.7,1.3229]
[1742731913505,0.99436,2011.7,2011.6,0.00745471]
[1742731913705,3.57466,2011.7,2011.6,1.31935471]
[1742731919407,3.57466,2011.7,2011.6,0.00745471]
[1742731921215,3.57466,2011.7,2011.6,1.31105471]
[1742731928824,2.93316,2011.7,2011.6,1.31105471]
[1742731929116,0.99431,2011.9,2011.7,0.99434]
[1742731929316,4.21126,2011.9,2011.8,1.3563]
[1742731931226,0.99425,2012.0,2011.8,5.55841]
[1742731931431,3.217,2011.9,2011.8,5.55841]
[1742731931723,3.217,2011.9,2011.8,4.20211]
[1742731932918,0.9942,2012.1,2011.9,0.99424]
[1742731933117,0.00745471,2012.5,2012.4,0.99401]
[1742731933317,0.00745471,2012.5,2012.4,4.20181]
[1742731933620,0.00745471,2012.5,2012.4,45.00181]
[1742731935022,1.00141471,2012.5,2012.4,3.2078]
[1742731935529,4.21841471,2012.5,2012.4,3.2078]
[1742731935920,5.61671471,2012.5,2012.4,3.2078]
[1742731936117,5.61571471,2012.5,2012.4,3.2078]
[1742731937425,2.39971471,2012.5,2012.4,3.2078]
[1742731937626,5.61571471,2012.5,2012.4,3.2078]
[1742731940327,0.99401,2012.4,2012.3,0.99406]
[1742731940529,2.31651,2012.4,2012.3,4.20186]
[1742731941731,2.31651,2012.4,2012.3,3.2078]
[1742731942031,0.99406,2012.3,2012.2,2.26009]
[1742731942230,2.27406,2012.3,2012.2,2.26009]
[1742731942623,5.49006,2012.3,2012.2,1.266]
[1742731942824,5.49006,2012.3,2012.2,2.26011]
[1742731943227,4.21006,2012.3,2012.2,2.26011]
[1742731945229,3.216,2012.3,2012.2,2.26011]
[1742731948132,0.99403,2012.4,2012.3,0.99406]
[1742731948342,0.99403,2012.4,2012.3,2.28946]
[1742731949936,5.57725471,2012.5,2012.3,2.28946]
[1742731950235,5.57725471,2012.5,2012.4,1.3547]
[1742731950534,4.21745471,2012.5,2012.4,1.3547]
[1742731951635,0.99405,2012.4,2012.2,1.6334]
[1742731951830,0.99405,2012.4,2012.3,1.3547]
[1742731956640,0.99416,2012.1,2012.0,1.395]
[1742731956839,4.20916,2012.1,2012.0,1.395]
[1742731957440,0.99421,2012.0,2011.9,40.8]
[1742731957634,1.62881,2012.0,2011.9,1.395]
[1742731958339,0.99431,2011.8,2011.7,44.0078]
[1742731958543,0.99431,2011.8,2011.7,4.6028]
[1742731958736,0.99431,2011.8,2011.7,3.2078]
[1742731959040,1.66061,2011.8,2011.7,3.2078]
[1742731959937,0.6663,2011.8,2011.7,4.5572]
[1742731960137,0.6663,2011.8,2011.7,6.19876]
[1742731961243,1.66061,2011.8,2011.7,6.19876]
[1742731961646,1.66061,2011.8,2011.7,5.2044]
[1742731961944,0.6663,2011.8,2011.7,5.2044]
[1742731962143,5.48288,2011.9,2011.7,6.19873]
[1742731962346,4.20928,2011.9,2011.8,1.3449]
[1742731963543,4.20928,2011.9,2011.8,2.33921]
[1742731965647,4.20928,2011.9,2011.8,1.3449]
[1742731966141,3.215,2011.9,2011.8,2.33921]
[1742731967347,4.20926,2011.9,2011.8,2.33921]
[1742731967552,4.20926,2011.9,2011.8,1.3449]
[1742731967743,4.20926,2011.9,2011.8,2.33921]
[1742731970150,3.215,2011.9,2011.8,2.33921]
[1742731971851,4.20926,2011.9,2011.8,2.33921]
[1742731972044,5.47756,2011.9,2011.8,2.33921]
[1742731974848,5.47756,2011.9,2011.8,1.3449]
[1742731975052,0.99431,2011.8,2011.7,3.2078]
[1742731975248,0.99436,2011.7,2011.6,0.00745471]
[1742731975447,4.88486,2011.7,2011.6,0.00745471]
[1742731975643,6.18506,2011.7,2011.6,0.00745471]
[1742731976452,0.99446,2011.5,2011.4,4.5754]
[1742731976653,4.21046,2011.5,2011.4,4.5754]
[1742731977047,4.90536,2011.5,2011.4,4.5754]
[1742731982669,4.90536,2011.5,2011.4,3.2078]
[1742731983474,0.99456,2011.3,2011.2,1.31495471]
[1742731983671,4.21056,2011.3,2011.2,1.31495471]
[1742731984173,4.86276,2011.3,2011.2,1.31495471]
[1742731988875,4.86276,2011.3,2011.2,0.00745471]
[1742731989870,1.64676,2011.3,2011.2,0.00745471]
[1742731990070,4.86276,2011.3,2011.2,0.00745471]
[1742731990578,0.99461,2011.2,2011.1,3.2078]
[1742731990770,2.95431,2011.2,2011.1,3.2078]
[1742731991079,0.9947,2011.0,2010.9,1.3648]
[1742731991271,4.2107,2011.0,2010.9,1.3648]
[1742731998381,3.21525471,2011.5,2010.9,1.3648]
[1742731998686,0.99463,2011.2,2011.0,0.99467]
[1742731999085,0.99463,2011.2,2011.1,2.0256]
[1742731999782,7.41843,2011.2,2011.1,2.0256]
[1742732000179,4.21063,2011.2,2011.1,2.0256]
[1742732011788,0.99463,2011.2,2011.1,2.0256]
[1742732011988,4.21063,2011.2,2011.1,2.0256]
[1742732015295,4.90073,2011.2,2011.1,2.0256]
[1742732015885,4.90073,2011.2,2010.8,3.2078]
[1742732015886,0.99475,2010.9,2010.8,1.2732]
[1742732016094,7.41855,2010.9,2010.7,0.99988359]
[1742732016294,0.9948,2010.8,2010.7,0.00503359]
[1742732016994,0.9948,2010.8,2010.7,0.99986359]
[1742732017296,0.9948,2010.8,2010.7,1.63546359]
[1742732017800,4.21079,2010.9,2010.7,1.63546359]
[1742732018001,0.9948,2010.8,2010.7,0.64063359]
[1742732018199,0.99475,2011.0,2010.8,0.9948]
[1742732018400,0.99475,2011.0,2010.9,1.69475]
[1742732018600,2.32248,2011.1,2011.0,0.9947]
[1742732018798,0.99468,2011.1,2010.9,1.69471]
[1742732018994,0.99465,2011.1,2011.0,1.63027]
[1742732019300,0.99465,2011.1,2011.0,0.6356]
[1742732020400,2.34675,2011.1,2011.0,0.6356]
[1742732021506,1.3521,2011.1,2011.0,1.6303]
[1742732022699,2.34675,2011.1,2011.0,0.6356]
[1742732023008,2.34675,2011.1,2010.9,1.69472]
[1742732023303,1.3738,2011.0,2010.9,1.69472]
[1742732024898,2.3685,2011.0,2010.9,0.7]
[1742732026500,3.0588,2011.0,2010.9,0.7]
[1742732030801,3.0588,2011.0,2010.9,1.69475]
[1742732031001,2.3685,2011.0,2010.9,1.69475]
[1742732031211,2.3685,2011.0,2010.9,0.7]
[1742732032011,2.3685,2011.0,2010.9,1.9882]
[1742732032311,5.5763,2011.0,2010.9,1.9882]
[1742732032613,5.5763,2011.0,2010.9,1.2882]
[1742732034721,2.3685,2011.0,2010.9,1.2882]
[1742732035109,0.99475,2010.9,2010.7,0.00503359]
[1742732035415,0.9948,2010.8,2010.7,0.00503359]
[1742732035806,2.335,2010.8,2010.7,0.00503359]
[1742732036408,2.335,2010.8,2010.7,1.40203359]
[1742732039612,2.335,2010.8,2010.7,0.00503359]
[1742732049626,0.995,2010.4,2010.3,1.3884]
[1742732049822,4.2028,2010.4,2010.3,1.3884]
[1742732050325,5.5424,2010.4,2010.3,1.3884]
[1742732056731,3.2078,2010.4,2010.3,1.3884]
[1742732057028,4.2028,2010.4,2010.3,2.0799]
[1742732057233,4.2028,2010.4,2010.3,3.07495]
[1742732058431,4.2028,2010.4,2010.3,2.0799]
[1742732059945,4.2028,2010.4,2010.3,3.07495]
[1742732060341,3.2078,2010.4,2010.3,3.07495]
[1742732061743,4.2028,2010.4,2010.3,3.07495]
[1742732061933,0.995,2010.4,2010.3,6.28275]
[1742732062134,4.21098,2010.5,2010.4,0.995]
[1742732062338,4.21098,2010.5,2010.4,1.3408]
[1742732062538,4.21098,2010.5,2010.4,2.0159]
[1742732064241,0.99498,2010.5,2010.4,2.0159]